fUST/lending_fUST_20241113
["ID","MTS","AMOUNT","RATE_DAILY","PERIOD"]
[342090968,1731429040100,-758.27,0.00023013,2]
[342090969,1731429040109,-500.0,0.00023013,2]
[342090970,1731429040118,-3191.38,0.00023013,2]
[342090971,1731429040127,-1021.95,0.00023013,2]
[342090972,1731429040136,-500.0,0.00023013,2]
[342090973,1731429040145,-3700.61,0.00023013,2]
[342090974,1731429040154,-500.0,0.00023013,2]
[342090975,1731429040164,-500.0,0.00023013,2]
[342090976,1731429040173,-500.0,0.00023013,2]
[342090977,1731429040182,-500.0,0.00023013,2]
[342090978,1731429040196,-711.18,0.00023013,2]
[342090979,1731429040206,-500.0,0.00023013,2]
[342090980,1731429040215,-596.61,0.00023013,2]
[342090981,1731429040224,-500.0,0.00023013,2]
[342090982,1731429040233,-159.0,0.00023014,2]
[342090983,1731429040243,-246.0,0.00023014,2]
[342090984,1731429040252,-2310.39630611,0.00023049,2]
[342090985,1731429040261,-675.38966901,0.0002305,2]
[342090986,1731429040271,-151.0,0.00023053,7]
[342090987,1731429040280,-151.0,0.00023053,7]
[342090988,1731429040289,-151.0,0.00023053,7]
[342090989,1731429040299,-151.0,0.00023053,7]
[342090990,1731429040307,-167.613952,0.000232,2]
[342090991,1731429040317,-8078.35158196,0.00023229,2]
[342090992,1731429040326,-463.7,0.00023277,3]
[342090993,1731429040335,-500.0,0.00023287,2]
[342090994,1731429040344,-500.0,0.00023287,2]
[342090995,1731429040354,-500.0,0.00023287,2]
[342090996,1731429040363,-500.0,0.00023287,2]
[342090997,1731429040373,-500.0,0.00023287,2]
[342090998,1731429040382,-500.0,0.00023287,2]
[342090999,1731429040391,-500.0,0.00023287,2]
[342091000,1731429040400,-500.0,0.00023287,2]
[342091001,1731429040409,-596.84,0.00023287,2]
[342091002,1731429040418,-500.0,0.00023287,2]
[342091003,1731429040427,-333.197096,0.00023287,2]
[342091004,1731429040440,-500.0,0.00023287,2]
[342091005,1731429040449,-500.0,0.00023287,2]
[342091006,1731429040459,-500.0,0.00023287,2]
[342091007,1731429040468,-898.34,0.00023287,2]
[342091008,1731429040477,-500.0,0.00023287,2]
[342091009,1731429040487,-982.1,0.00023287,2]
[342091010,1731429040499,-500.0,0.00023287,2]
[342091011,1731429040511,-500.0,0.00023287,2]
[342091012,1731429040521,-1453.04,0.00023287,2]
[342091013,1731429040531,-500.0,0.00023287,2]
[342091014,1731429040541,-848.83925211,0.00023287,2]
[342091026,1731429042621,-546.95244872,0.00021917,2]
[342091027,1731429042631,-500.0,0.00021917,2]
[342091028,1731429042641,-500.0,0.00021917,2]
[342091029,1731429042650,-500.0,0.00022191,2]
[342091030,1731429042660,-159.52074789,0.00023287,2]
[342091031,1731429042670,-500.0,0.00023287,2]
[342091032,1731429042679,-500.0,0.00023287,2]
[342091033,1731429042692,-500.0,0.00023287,2]
[342091035,1731429042701,-500.0,0.00023287,2]
[342091038,1731429042711,-500.0,0.00023287,2]
[342091039,1731429042721,-728.99,0.00023287,2]
[342091040,1731429042730,-565.8529745,0.00023287,2]
[342091041,1731429042742,-646.0670255,0.00023287,2]
[342091042,1731429042751,-253.17498724,0.00023287,2]
[342091051,1731429043128,-500.0,0.00022173,2]
[342091052,1731429043138,-500.0,0.00022191,2]
[342091053,1731429043147,-500.0,0.00022773,2]
[342091054,1731429043157,-676.83501276,0.00023287,2]
[342091055,1731429043167,-500.0,0.00023287,2]
[342091056,1731429043177,-1697.53,0.00023287,2]
[342091057,1731429043187,-733.81,0.00023287,2]
[342091058,1731429043201,-2569.56,0.00023287,2]
[342091059,1731429043211,-1612.16,0.00023287,2]
[342091060,1731429043221,-500.0,0.00023287,2]
[342091061,1731429043230,-500.0,0.00023287,2]
[342091062,1731429043239,-743.43,0.00023287,2]
[342091063,1731429043248,-500.0,0.00023287,2]
[342091064,1731429043258,-758.27,0.00023287,2]
[342091065,1731429043267,-500.0,0.00023287,2]
[342091066,1731429043279,-3191.38,0.00023287,2]
[342091067,1731429043288,-1021.95,0.00023287,2]
[342091068,1731429043298,-500.0,0.00023287,2]
[342091070,1731429043307,-3700.61,0.00023287,2]
[342091072,1731429043317,-500.0,0.00023287,2]
[342091074,1731429043327,-500.0,0.00023287,2]
[342091075,1731429043338,-500.0,0.00023287,2]
[342091077,1731429043347,-500.0,0.00023287,2]
[342091078,1731429043356,-711.18,0.00023287,2]
[342091079,1731429043365,-500.0,0.00023287,2]
[342091080,1731429043374,-596.61,0.00023287,2]
[342091081,1731429043384,-500.0,0.00023287,2]
[342091082,1731429043393,-1000.0,0.00023321,2]
[342091083,1731429043402,-1000.0,0.00023321,2]
[342091084,1731429043411,-1000.0,0.00023321,2]
[342091086,1731429043420,-1000.0,0.00023321,2]
[342091087,1731429043429,-1000.0,0.00023321,2]
[342091089,1731429043442,-675.38966901,0.00023461,2]
[342091091,1731429043452,-8078.35158196,0.00023478,2]
[342091093,1731429043461,-150.0,0.000235,2]
[342091097,1731429043559,-151.0,0.00023561,7]
[342091098,1731429043569,-151.0,0.00023561,7]
[342091099,1731429043581,-151.0,0.00023561,7]
[342091100,1731429043590,-151.0,0.00023561,7]
[342091101,1731429043600,-500.0,0.00023561,2]
[342091102,1731429043610,-500.0,0.00023561,2]
[342091103,1731429043619,-500.0,0.00023561,2]
[342091104,1731429043629,-500.0,0.00023561,2]
[342091105,1731429043638,-500.0,0.00023561,2]
[342091106,1731429043647,-500.0,0.00023561,2]
[342091107,1731429043656,-500.0,0.00023561,2]
[342091108,1731429043666,-500.0,0.00023561,2]
[342091109,1731429043675,-596.84,0.00023561,2]
[342091110,1731429043684,-500.0,0.00023561,2]
[342091111,1731429043698,-500.0,0.00023561,2]
[342091112,1731429043707,-500.0,0.00023561,2]
[342091113,1731429043716,-500.0,0.00023561,2]
[342091114,1731429043725,-898.34,0.00023561,2]
[342091115,1731429043735,-982.1,0.00023561,2]
[342091116,1731429043745,-500.0,0.00023561,2]
[342091117,1731429043754,-500.0,0.00023561,2]
[342091118,1731429043764,-500.0,0.00023561,2]
[342091119,1731429043773,-1453.04,0.00023561,2]
[342091120,1731429043782,-500.0,0.00023561,2]
[342091121,1731429043792,-1008.36,0.00023561,2]
[342091122,1731429043802,-246.73307136,0.00023561,2]
[342091123,1731429043811,-500.0,0.00023561,2]
[342091124,1731429043820,-500.0,0.00023561,2]
[342091125,1731429043829,-500.0,0.00023561,2]
[342091126,1731429043839,-500.0,0.00023561,2]
[342091127,1731429043849,-728.99,0.00023561,2]
[342091128,1731429043859,-1211.92,0.00023561,2]
[342091129,1731429043869,-930.01,0.00023561,2]
[342091130,1731429043878,-500.0,0.00023561,2]
[342091131,1731429043889,-1697.53,0.00023561,2]
[342091132,1731429043898,-733.81,0.00023561,2]
[342091133,1731429043907,-2569.56,0.00023561,2]
[342091134,1731429043917,-1612.16,0.00023561,2]
[342091135,1731429043926,-500.0,0.00023561,2]
[342091136,1731429043935,-500.0,0.00023561,2]
[342091137,1731429043950,-743.43,0.00023561,2]
[342091138,1731429043959,-500.0,0.00023561,2]
[342091139,1731429043968,-758.27,0.00023561,2]
[342091140,1731429043978,-500.0,0.00023561,2]
[342091141,1731429043987,-3191.38,0.00023561,2]
[342091142,1731429043997,-1021.95,0.00023561,2]
[342091143,1731429044007,-500.0,0.00023561,2]
[342091144,1731429044016,-3700.61,0.00023561,2]
[342091145,1731429044026,-500.0,0.00023561,2]
[342091146,1731429044036,-500.0,0.00023561,2]
[342091147,1731429044045,-623.31532288,0.00023561,2]
[342091148,1731429044055,-500.0,0.00023561,2]
[342091149,1731429044064,-711.18,0.00023561,2]
[342091150,1731429044074,-500.0,0.00023561,2]
[342091151,1731429044083,-596.61,0.00023561,2]
[342091152,1731429044093,-500.0,0.00023561,2]
[342091153,1731429044102,-8078.35158196,0.00023566,2]
[342091154,1731429044111,-153.0,0.00023702,2]
[342091155,1731429044120,-153.0,0.00023702,2]
[342091156,1731429044129,-153.0,0.00023702,2]
[342091157,1731429044138,-153.0,0.00023702,2]
[342091158,1731429044148,-153.0,0.00023702,2]
[342091159,1731429044157,-153.0,0.00023702,2]
[342091160,1731429044167,-153.0,0.00023702,2]
[342091161,1731429044176,-153.0,0.00023702,2]
[342091162,1731429044185,-153.0,0.00023702,2]
[342091163,1731429044198,-153.0,0.00023702,2]
[342091164,1731429044208,-153.0,0.00023702,2]
[342091165,1731429044217,-153.0,0.00023702,2]
[342091166,1731429044226,-153.0,0.00023702,2]
[342091167,1731429044236,-153.0,0.00023702,2]
[342091168,1731429044245,-1500.0,0.00023722,2]
[342091169,1731429044254,-232.9,0.00023785,3]
[342091170,1731429044263,-420.0,0.00023815,2]
[342091171,1731429044274,-151.0,0.00023835,7]
[342091172,1731429044283,-151.0,0.00023835,7]
[342091173,1731429044291,-151.0,0.00023835,7]
[342091174,1731429044302,-151.0,0.00023835,7]
[342091175,1731429044312,-500.0,0.00023835,2]
[342091176,1731429044322,-370.62603595,0.00023835,2]
[342091177,1731429044333,-500.0,0.00023835,2]
[342091178,1731429044343,-500.0,0.00023835,2]
[342091179,1731429044353,-500.0,0.00023835,2]
[342091180,1731429044362,-500.0,0.00023835,2]
[342091181,1731429044372,-500.0,0.00023835,2]
[342091182,1731429044381,-498.0398272,0.00023835,2]
[342091183,1731429044390,-596.84,0.00023835,2]
[342091184,1731429044401,-500.0,0.00023835,2]
[342091185,1731429044411,-500.0,0.00023835,2]
[342091186,1731429044420,-500.0,0.00023835,2]
[342091187,1731429044430,-500.0,0.00023835,2]
[342091188,1731429044443,-898.34,0.00023835,2]
[342091189,1731429044453,-982.1,0.00023835,2]
[342091190,1731429044463,-500.0,0.00023835,2]
[342091191,1731429044474,-500.0,0.00023835,2]
[342091192,1731429044484,-500.0,0.00023835,2]
[342091193,1731429044494,-1453.04,0.00023835,2]
[342091194,1731429044503,-500.0,0.00023835,2]
[342091195,1731429044516,-1008.36,0.00023835,2]
[342091196,1731429044525,-500.0,0.00023835,2]
[342091197,1731429044535,-500.0,0.00023835,2]
[342091198,1731429044546,-500.0,0.00023835,2]
[342091199,1731429044555,-500.0,0.00023835,2]
[342091200,1731429044566,-728.99,0.00023835,2]
[342091201,1731429044576,-1211.92,0.00023835,2]
[342091202,1731429044590,-930.01,0.00023835,2]
[342091203,1731429044600,-500.0,0.00023835,2]
[342091204,1731429044610,-1697.53,0.00023835,2]
[342091205,1731429044620,-733.81,0.00023835,2]
[342091206,1731429044630,-1612.16,0.00023835,2]
[342091207,1731429044640,-2569.56,0.00023835,2]
[342091208,1731429044649,-500.0,0.00023835,2]
[342091209,1731429044659,-500.0,0.00023835,2]
[342091210,1731429044668,-743.43,0.00023835,2]
[342091211,1731429044678,-500.0,0.00023835,2]
[342091212,1731429044687,-758.27,0.00023835,2]
[342091213,1731429044702,-500.0,0.00023835,2]
[342091214,1731429044712,-3191.38,0.00023835,2]
[342091215,1731429044721,-1021.95,0.00023835,2]
[342091216,1731429044731,-500.0,0.00023835,2]
[342091217,1731429044740,-3700.61,0.00023835,2]
[342091218,1731429044750,-500.0,0.00023835,2]
[342091219,1731429044760,-500.0,0.00023835,2]
[342091220,1731429044769,-500.0,0.00023835,2]
[342091221,1731429044779,-711.18,0.00023835,2]
[342091222,1731429044789,-628.97452148,0.00023835,2]
[342091223,1731429044798,-596.61,0.00023835,2]
[342091224,1731429044808,-500.0,0.00023835,2]
[342091225,1731429044818,-150.0,0.000239,2]
[342091226,1731429044828,-8078.35158196,0.00023967,2]
[342091227,1731429044838,-420.0,0.00024105,2]
[342091228,1731429044848,-151.0,0.00024109,7]
[342091229,1731429044858,-151.0,0.00024109,7]
[342091230,1731429044868,-151.0,0.00024109,7]
[342091231,1731429044878,-500.0,0.00024109,2]
[342091232,1731429044889,-500.0,0.00024109,2]
[342091233,1731429044899,-500.0,0.00024109,2]
[342091234,1731429044909,-500.0,0.00024109,2]
[342091235,1731429044920,-624.89938504,0.00024109,2]
[342091236,1731429044931,-580.47083221,0.00024109,2]
[342091237,1731429044944,-596.84,0.00024109,2]
[342091238,1731429044954,-500.0,0.00024109,2]
[342091239,1731429044964,-500.0,0.00024109,2]
[342091240,1731429044974,-500.0,0.00024109,2]
[342091241,1731429044984,-500.0,0.00024109,2]
[342091242,1731429044995,-898.34,0.00024109,2]
[342091243,1731429045004,-982.1,0.00024109,2]
[342091244,1731429045015,-500.0,0.00024109,2]
[342091245,1731429045025,-500.0,0.00024109,2]
[342091246,1731429045035,-500.0,0.00024109,2]
[342091247,1731429045044,-1453.04,0.00024109,2]
[342091248,1731429045053,-500.0,0.00024109,2]
[342091249,1731429045063,-1008.36,0.00024109,2]
[342091250,1731429045072,-500.0,0.00024109,2]
[342091251,1731429045082,-500.0,0.00024109,2]
[342091252,1731429045091,-500.0,0.00024109,2]
[342091253,1731429045101,-500.0,0.00024109,2]
[342091254,1731429045110,-728.99,0.00024109,2]
[342091255,1731429045120,-1211.92,0.00024109,2]
[342091256,1731429045129,-930.01,0.00024109,2]
[342091257,1731429045138,-500.0,0.00024109,2]
[342091258,1731429045148,-1697.53,0.00024109,2]
[342091259,1731429045157,-733.81,0.00024109,2]
[342091260,1731429045166,-2569.56,0.00024109,2]
[342091261,1731429045176,-1612.16,0.00024109,2]
[342091262,1731429045186,-500.0,0.00024109,2]
[342091263,1731429045198,-500.0,0.00024109,2]
[342091264,1731429045207,-743.43,0.00024109,2]
[342091265,1731429045218,-500.0,0.00024109,2]
[342091266,1731429045227,-758.27,0.00024109,2]
[342091267,1731429045237,-500.0,0.00024109,2]
[342091268,1731429045247,-3191.38,0.00024109,2]
[342091269,1731429045257,-1021.95,0.00024109,2]
[342091270,1731429045268,-500.0,0.00024109,2]
[342091271,1731429045277,-3700.61,0.00024109,2]
[342091272,1731429045287,-194.53278499,0.00024109,2]
[342091273,1731429045296,-500.0,0.00024109,2]
[342091274,1731429045305,-500.0,0.00024109,2]
[342091275,1731429045315,-711.18,0.00024109,2]
[342091276,1731429045325,-596.61,0.00024109,2]
[342091277,1731429045335,-500.0,0.00024109,2]
[342091278,1731429045344,-248.0,0.00024164,2]
[342091279,1731429045354,-2310.39630611,0.00024281,2]
[342091280,1731429045363,-1000.0,0.00024322,2]
[342091281,1731429045373,-1500.0,0.00024322,2]
[342091282,1731429045383,-223.68812513,0.00024322,2]
[342091283,1731429045392,-1500.0,0.00024322,2]
[342091284,1731429045402,-1500.0,0.00024322,2]
[342091285,1731429045412,-8078.35158196,0.0002434,2]
[342091286,1731429045421,-151.0,0.00024383,7]
[342091287,1731429045430,-151.0,0.00024383,7]
[342091288,1731429045443,-151.0,0.00024383,7]
[342091289,1731429045455,-554.59365557,0.00024383,2]
[342091290,1731429045464,-500.0,0.00024383,2]
[342091291,1731429045473,-500.0,0.00024383,2]
[342091295,1731429045570,-500.0,0.00024383,2]
[342091296,1731429045581,-596.84,0.00024383,2]
[342091297,1731429045592,-500.0,0.00024383,2]
[342091298,1731429045602,-500.0,0.00024383,2]
[342091299,1731429045613,-500.0,0.00024383,2]
[342091300,1731429045623,-500.0,0.00024383,2]
[342091302,1731429045633,-898.34,0.00024383,2]
[342091303,1731429045643,-982.1,0.00024383,2]
[342091304,1731429045652,-500.0,0.00024383,2]
[342091305,1731429045662,-500.0,0.00024383,2]
[342091307,1731429045671,-500.0,0.00024383,2]
[342091310,1731429045681,-1453.04,0.00024383,2]
[342091313,1731429045707,-500.0,0.00024383,2]
[342091315,1731429045723,-1008.36,0.00024383,2]
[342091317,1731429045734,-500.0,0.00024383,2]
[342091319,1731429045745,-500.0,0.00024383,2]
[342091321,1731429045757,-500.0,0.00024383,2]
[342091323,1731429045770,-500.0,0.00024383,2]
[342091325,1731429045781,-728.99,0.00024383,2]
[342091327,1731429045792,-1211.92,0.00024383,2]
[342091330,1731429045803,-930.01,0.00024383,2]
[342091331,1731429045813,-500.0,0.00024383,2]
[342091333,1731429045825,-1697.53,0.00024383,2]
[342091334,1731429045837,-733.81,0.00024383,2]
[342091336,1731429045849,-2569.56,0.00024383,2]
[342091338,1731429045861,-1612.16,0.00024383,2]
[342091339,1731429045874,-500.0,0.00024383,2]
[342091341,1731429045885,-500.0,0.00024383,2]
[342091343,1731429045897,-743.43,0.00024383,2]
[342091344,1731429045907,-500.0,0.00024383,2]
[342091345,1731429045918,-758.27,0.00024383,2]
[342091346,1731429045929,-500.0,0.00024383,2]
[342091347,1731429045939,-3191.38,0.00024383,2]
[342091349,1731429045959,-1021.95,0.00024383,2]
[342091350,1731429045969,-500.0,0.00024383,2]
[342091352,1731429045980,-3700.61,0.00024383,2]
[342091354,1731429045990,-500.0,0.00024383,2]
[342091356,1731429046000,-500.0,0.00024383,2]
[342091357,1731429046011,-711.18,0.00024383,2]
[342091359,1731429046021,-596.61,0.00024383,2]
[342091360,1731429046032,-500.0,0.00024383,2]
[342091362,1731429046043,-232.9,0.00024417,3]
[342091364,1731429046055,-167.613952,0.00024482,2]
[342091366,1731429046066,-3124.34733147,0.000245,2]
[342091367,1731429046077,-3124.34733145,0.000245,2]
[342091368,1731429046088,-3124.34733145,0.000245,2]
[342091369,1731429046099,-3124.34733145,0.000245,2]
[342091370,1731429046110,-8078.35158196,0.00024533,2]
[342091371,1731429046120,-151.0,0.00024657,7]
[342091372,1731429046130,-292.423641,0.00024657,7]
[342091374,1731429046141,-151.0,0.00024657,7]
[342091375,1731429046152,-500.0,0.00024657,2]
[342091376,1731429046163,-500.0,0.00024657,2]
[342091377,1731429046175,-500.0,0.00024657,2]
[342091378,1731429046186,-596.84,0.00024657,2]
[342091379,1731429046205,-500.0,0.00024657,2]
[342091380,1731429046216,-500.0,0.00024657,2]
[342091381,1731429046226,-500.0,0.00024657,2]
[342091382,1731429046236,-500.0,0.00024657,2]
[342091383,1731429046247,-898.34,0.00024657,2]
[342091384,1731429046258,-982.1,0.00024657,2]
[342091385,1731429046268,-500.0,0.00024657,2]
[342091386,1731429046279,-202.0480695,0.00024657,2]
[342091387,1731429046291,-500.0,0.00024657,2]
[342091388,1731429046301,-500.0,0.00024657,2]
[342091389,1731429046312,-1453.04,0.00024657,2]
[342091391,1731429046323,-500.0,0.00024657,2]
[342091392,1731429046335,-1008.36,0.00024657,2]
[342091393,1731429046346,-500.0,0.00024657,2]
[342091394,1731429046356,-500.0,0.00024657,2]
[342091395,1731429046366,-500.0,0.00024657,2]
[342091396,1731429046377,-500.0,0.00024657,2]
[342091397,1731429046387,-728.99,0.00024657,2]
[342091398,1731429046396,-1211.92,0.00024657,2]
[342091399,1731429046406,-930.01,0.00024657,2]
[342091400,1731429046415,-500.0,0.00024657,2]
[342091401,1731429046426,-1697.53,0.00024657,2]
[342091402,1731429046437,-733.81,0.00024657,2]
[342091403,1731429046451,-2569.56,0.00024657,2]
[342091404,1731429046461,-1612.16,0.00024657,2]
[342091405,1731429046470,-500.0,0.00024657,2]
[342091406,1731429046480,-500.0,0.00024657,2]
[342091407,1731429046490,-743.43,0.00024657,2]
[342091408,1731429046500,-500.0,0.00024657,2]
[342091409,1731429046514,-758.27,0.00024657,2]
[342091410,1731429046524,-500.0,0.00024657,2]
[342091411,1731429046534,-3191.38,0.00024657,2]
[342091412,1731429046545,-1021.95,0.00024657,2]
[342091413,1731429046557,-500.0,0.00024657,2]
[342091414,1731429046567,-3700.61,0.00024657,2]
[342091415,1731429046578,-500.0,0.00024657,2]
[342091416,1731429046589,-500.0,0.00024657,2]
[342091417,1731429046600,-711.18,0.00024657,2]
[342091418,1731429046612,-596.61,0.00024657,2]
[342091419,1731429046622,-500.0,0.00024657,2]
[342091420,1731429046633,-150.0,0.00024658,2]
[342091421,1731429046644,-380.0,0.00024658,2]
[342091422,1731429046656,-500.0,0.00024658,2]
[342091423,1731429046666,-486.82929698,0.00024658,2]
[342091424,1731429046676,-500.0,0.00024658,2]
[342091425,1731429046686,-150.112234,0.000247,9]
[342091426,1731429046698,-8078.35158196,0.00024799,2]
[342091427,1731429046709,-700.0,0.000248,7]
[342091428,1731429046720,-150.0,0.000249,2]
[342091429,1731429046730,-150.01,0.0002493,2]
[342091430,1731429046741,-1585.91515198,0.0002493,2]
[342091431,1731429046752,-151.0,0.00024931,2]
[342091432,1731429046762,-500.0,0.00024931,2]
[342091433,1731429046772,-500.0,0.00024931,2]
[342091434,1731429046782,-500.0,0.00024931,2]
[342091435,1731429046792,-596.84,0.00024931,2]
[342091436,1731429046802,-500.0,0.00024931,2]
[342091437,1731429046811,-384.39197958,0.00024931,2]
[342091438,1731429046822,-500.0,0.00024931,2]
[342091439,1731429046833,-500.0,0.00024931,2]
[342091440,1731429046844,-898.34,0.00024931,2]
[342091441,1731429046854,-982.1,0.00024931,2]
[342091442,1731429046863,-515.37067319,0.00024931,2]
[342091443,1731429046873,-500.0,0.00024931,2]
[342091444,1731429046884,-500.0,0.00024931,2]
[342091445,1731429046894,-1453.04,0.00024931,2]
[342091446,1731429046904,-500.0,0.00024931,2]
[342091447,1731429046915,-1008.36,0.00024931,2]
[342091448,1731429046924,-500.0,0.00024931,2]
[342091449,1731429046934,-500.0,0.00024931,2]
[342091450,1731429046948,-500.0,0.00024931,2]
[342091451,1731429046960,-500.0,0.00024931,2]
[342091452,1731429046970,-728.99,0.00024931,2]
[342091453,1731429046980,-1211.92,0.00024931,2]
[342091454,1731429046990,-930.01,0.00024931,2]
[342091455,1731429047000,-500.0,0.00024931,2]
[342091456,1731429047010,-1697.53,0.00024931,2]
[342091457,1731429047020,-733.81,0.00024931,2]
[342091458,1731429047031,-2569.56,0.00024931,2]
[342091459,1731429047040,-1612.16,0.00024931,2]
[342091460,1731429047049,-500.0,0.00024931,2]
[342091461,1731429047059,-500.0,0.00024931,2]
[342091462,1731429047068,-743.43,0.00024931,2]
[342091463,1731429047079,-500.0,0.00024931,2]
[342091464,1731429047088,-758.27,0.00024931,2]
[342091465,1731429047097,-500.0,0.00024931,2]
[342091466,1731429047107,-3191.38,0.00024931,2]
[342091467,1731429047116,-1021.95,0.00024931,2]
[342091468,1731429047125,-500.0,0.00024931,2]
[342091469,1731429047136,-150.02,0.00024931,2]
[342091470,1731429047145,-3700.61,0.00024931,2]
[342091471,1731429047154,-500.0,0.00024931,2]
[342091472,1731429047164,-500.0,0.00024931,2]
[342091473,1731429047174,-711.18,0.00024931,2]
[342091474,1731429047183,-596.61,0.00024931,2]
[342091475,1731429047193,-500.0,0.00024931,2]
[342091476,1731429047203,-500.0,0.00024973,2]
[342091477,1731429047212,-150.28028301,0.00024973,2]
[342091478,1731429047223,-269.599999,0.00025,2]
[342091479,1731429047235,-1040.37165827,0.00025,2]
[342091480,1731429047244,-1000.0,0.00025,5]
[342091481,1731429047254,-70123.18969422,0.00025,2]
[342091482,1731429047272,-112503.82338105,0.00025,2]
[342091483,1731429047383,-1063.265605,0.00025,2]
[342091484,1731429047395,-6436.31234089,0.00025,2]
[342091485,1731429047410,-500.0,0.00022465,2]
[342091486,1731429047420,-7638.76965104,0.00025,2]
[342091487,1731429047654,-182.0,0.00022,2]
[342091488,1731429047664,-169.20002,0.00022721,2]
[342091489,1731429047676,-663.43172225,0.00022721,2]
[342091490,1731429047685,-153.0,0.00023702,2]
[342091491,1731429047698,-41.56827775,0.00023702,2]
[342091492,1731429057829,206.96317553,0.00020086,2]
[342091494,1731429076852,15949.14856078,0.00020086,3]
[342091495,1731429076885,5762.26610585,0.00020086,3]
[342091507,1731429374260,1169.27083333,0.00020185,2]
[342091524,1731429520985,6247.61,0.00027,60]
[342091525,1731429622665,1169.27083333,0.00020185,2]
[342091528,1731429667617,3000.0,0.00019533,2]
[342091529,1731429747120,1169.27083333,0.00020185,2]
[342091530,1731429796581,3281.855754,0.00019423,2]
[342091531,1731429796948,3281.855754,0.00020107,2]
[342091544,1731429862509,197.719879,0.00019377,2]
[342091545,1731429870981,968.49000716,0.00020185,2]
[342091546,1731429871014,200.78082617,0.00020185,2]
[342091549,1731429915448,17577.9506037,0.00020054,2]
[342091553,1731429956651,2221.26857013,0.0001966,2]
[342091554,1731429956683,272.33511097,0.0001966,2]
[342091558,1731430199937,329.6403749,0.00019352,2]
[342091623,1731430232930,-659.7826089,0.00020254,2]
[342091624,1731430232942,-509.48822443,0.00020254,2]
[342091625,1731430232952,-173.859428,0.0002027,2]
[342091626,1731430232963,-300.0,0.00020284,2]
[342091627,1731430232974,-300.0,0.00020284,2]
[342091628,1731430232984,-24900.0,0.00020285,2]
[342091629,1731430232994,-7188.2802115,0.00020375,2]
[342091630,1731430233006,-1485.3487374,0.00020465,2]
[342091646,1731430238592,-160.26922661,0.00020275,2]
[342091647,1731430238602,-2874.71592345,0.00020465,2]
[342091648,1731430238611,-2104.46725191,0.00020792,2]
[342091649,1731430238621,-3281.855754,0.00020792,2]
[342091650,1731430238630,-3601.09818811,0.0002177,2]
[342091651,1731430238644,-1000.0,0.00021817,2]
[342091652,1731430238654,-3601.0981881,0.0002185,2]
[342091653,1731430238664,-183.37,0.00021858,3]
[342091654,1731430238673,-1283.62,0.00021858,3]
[342091655,1731430238682,-794.63,0.00021858,3]
[342091656,1731430238691,-397.31,0.00021858,3]
[342091657,1731430238700,-198.66,0.00021858,3]
[342091658,1731430238710,-595.98,0.00021858,3]
[342091659,1731430238719,-500.0,0.00021867,2]
[342091660,1731430238729,-500.0,0.00021867,2]
[342091662,1731430238738,-500.0,0.00021867,2]
[342091663,1731430238748,-500.0,0.00021867,2]